Workbook

Sheet default
B2: row ID | C2: Raw Reads | D2: Raw Read Length | E2: Cleaned Reads | F2: Min. Clean Read Length | G2: Mean Clean Read Length | H2: Max. Clean Read Length | I2: Deleted Reads | J2: Deleted Reads (%) | K2: Reads Mapped on Human | L2: Reads Mapped on Human (%) | M2: Reads After Human Mapping | N2: Toxo Mapped Reads | O2: Toxo Mapped Reads (%) | P2: Unmapped Reads | Q2: Unmapped Reads (%)
B3: SRR1542919 | C3: 58730137 | D3: 50 | E3: 2077159 | F3: 29 | G3: 37.15439694 | H3: 50 | I3: 56652978 | J3: 96.46321445 | K3: 21707 | L3: 1.045033144 | M3: 2055452 | N3: 1736721 | O3: 84.49338637 | P3: 318731 | Q3: =P3/C3*100 -> 0.5427043359
B4: SRR1542920 | C4: 43055026 | D4: 50 | E4: 11581307 | F4: 29 | G4: 44.22872669 | H4: 50 | I4: 31473719 | J4: 73.10114968 | K4: 105342 | L4: 0.9095864569 | M4: 11475965 | N4: 8272950 | O4: 72.08936242 | P4: 3203015 | Q4: =P4/C4*100 -> 7.439352144
B5: SRR1542921 | C5: 44958415 | D5: 75 | E5: 14617199 | F5: 29 | G5: 53.89210067 | H5: 75 | I5: 30341216 | J5: 67.4872902 | K5: 102997 | L5: 0.7046288417 | M5: 14514202 | N5: 10991744 | O5: 75.73095648 | P5: 3522458 | Q5: =P5/C5*100 -> 7.834924785
B6: SRR1542922 | C6: 43264535 | D6: 50 | E6: 1375655 | F6: 29 | G6: 37.3104492 | H6: 50 | I6: 41888880 | J6: 96.82036338 | K6: 10383 | L6: 0.7547677288 | M6: 1365272 | N6: 1167823 | O6: 85.53775365 | P6: 197449 | Q6: =P6/C6*100 -> 0.4563761057
B7: SRR1542923 | C7: 53074533 | D7: 50 | E7: 13476636 | F7: 29 | G7: 44.13274403 | H7: 50 | I7: 39597897 | J7: 74.60809311 | K7: 135623 | L7: 1.006356482 | M7: 13341013 | N7: 9282525 | O7: 69.57886182 | P7: 4058488 | Q7: =P7/C7*100 -> 7.646771004
B8: SRR1542924 | C8: 55077053 | D8: 75 | E8: 18329562 | F8: 29 | G8: 55.03546582 | H8: 75 | I8: 36747491 | J8: 66.7201475 | K8: 140920 | L8: 0.7688126972 | M8: 18188642 | N8: 13850674 | O8: 76.1501271 | P8: 4337968 | Q8: =P8/C8*100 -> 7.876180303
B9: SRR1542925 | C9: 36994224 | D9: 50 | E9: 1423290 | F9: 29 | G9: 37.56718237 | H9: 50 | I9: 35570934 | J9: 96.15266967 | K9: 46495 | L9: 3.26672709 | M9: 1376795 | N9: 1216068 | O9: 88.32600351 | P9: 160727 | Q9: =P9/C9*100 -> 0.4344651208
B10: SRR1542926 | C10: 48595529 | D10: 50 | E10: 12544189 | F10: 29 | G10: 44.20057622 | H10: 50 | I10: 36051340 | J10: 74.18653679 | K10: 156584 | L10: 1.248259254 | M10: 12387605 | N10: 9538706 | O10: 77.00201936 | P10: 2848899 | Q10: =P10/C10*100 -> 5.862471422
B11: SRR1542927 | C11: 55934799 | D11: 75 | E11: 17482709 | F11: 29 | G11: 53.81796768 | H11: 75 | I11: 38452090 | J11: 68.74448588 | K11: 195831 | L11: 1.120141049 | M11: 17286878 | N11: 14146224 | O11: 81.83215037 | P11: 3140654 | Q11: =P11/C11*100 -> 5.614848102
B12: SRR1542928 | C12: 74716539 | D12: 50 | E12: 2727669 | F12: 29 | G12: 37.69613285 | H12: 50 | I12: 71988870 | J12: 96.34931029 | K12: 87196 | L12: 3.196722183 | M12: 2640473 | N12: 2354694 | O12: 89.176977 | P12: 285779 | Q12: =P12/C12*100 -> 0.3824842583
B13: SRR1542929 | C13: 51517301 | D13: 50 | E13: 12437480 | F13: 29 | G13: 44.0058548 | H13: 50 | I13: 39079821 | J13: 75.85766382 | K13: 323998 | L13: 2.605013234 | M13: 12113482 | N13: 9588808 | O13: 79.15814792 | P13: 2524674 | Q13: =P13/C13*100 -> 4.900633284
B14: SRR1542930 | C14: 41089401 | D14: 75 | E14: 13451657 | F14: 29 | G14: 53.59518556 | H14: 75 | I14: 27637744 | J14: 67.26246508 | K14: 191262 | L14: 1.421847137 | M14: 13260395 | N14: 11018262 | O14: 83.0915067 | P14: 2242133 | Q14: =P14/C14*100 -> 5.456718632
B15: SRR1542931 | C15: 211425021 | D15: 50 | E15: 7886857 | F15: 29 | G15: 37.41471501 | H15: 50 | I15: 203538164 | J15: 96.26966716 | K15: 149051 | L15: 1.889865633 | M15: 7737806 | N15: 6748759 | O15: 87.21799177 | P15: 989047 | Q15: =P15/C15*100 -> 0.4678003556
B16: SRR1542932 | C16: 44043513 | D16: 50 | E16: 9678918 | F16: 29 | G16: 43.68600819 | H16: 50 | I16: 34364595 | J16: 78.02419167 | K16: 198934 | L16: 2.055333044 | M16: 9479984 | N16: 6461376 | O16: 68.15808972 | P16: 3018608 | Q16: =P16/C16*100 -> 6.85369489
B17: SRR1542933 | C17: 248076128 | D17: 75 | E17: 80172404 | F17: 29 | G17: 54.22522109 | H17: 75 | I17: 167903724 | J17: 67.68233822 | K17: 1507482 | L17: 1.880300359 | M17: 78664922 | N17: 61554926 | O17: 78.2495227 | P17: 17109996 | Q17: =P17/C17*100 -> 6.897074756
B18: SRR1542934 | C18: 51790061 | D18: 50 | E18: 1704048 | F18: 29 | G18: 37.07100446 | H18: 50 | I18: 50086013 | J18: 96.70970073 | K18: 38471 | L18: 2.257624198 | M18: 1665577 | N18: 1395363 | O18: 83.77655311 | P18: 270214 | Q18: =P18/C18*100 -> 0.5217487579
B19: SRR1542935 | C19: 55535624 | D19: 50 | E19: 14076802 | F19: 29 | G19: 44.1884222 | H19: 50 | I19: 41458822 | J19: 74.65266259 | K19: 664536 | L19: 4.720788145 | M19: 13412266 | N19: 9526217 | O19: 71.02615621 | P19: 3886049 | Q19: =P19/C19*100 -> 6.997398643
B20: SRR1542936 | C20: 38718995 | D20: 75 | E20: 13031003 | F20: 29 | G20: 54.12009045 | H20: 75 | I20: 25687992 | J20: 66.34467656 | K20: 487925 | L20: 3.744339557 | M20: 12543078 | N20: 9487739 | O20: 75.64123415 | P20: 3055339 | Q20: =P20/C20*100 -> 7.891059672
B21: Mean | C21: 69810935.22 | D21: =AVERAGE(D3:D20) -> 58.33333333 | E21: 13781919.11 | F21: =AVERAGE(F3:F20) -> 29 | G21: =AVERAGE(G3:G20) -> 45.18568024 | H21: =AVERAGE(H3:H20) -> 58.33333333 | I21: 56029016.11 | J21: =AVERAGE(J3:J20) -> 79.63536815 | K21: 253596.5 | L21: =AVERAGE(L3:L20) -> 1.922008124 | M21: 13528322.61 | N21: 10463309.94 | O21: =AVERAGE(O3:O20) -> 79.2353778 | P21: 3065012.667 | Q21: =AVERAGE(Q3:Q20) -> 4.670928143
B22: Total | C22: =SUM(C3:C20) -> 1256596834 | E22: =SUM(E3:E20) -> 248074544 | I22: =SUM(I3:I20) -> 1008522290 | K22: =SUM(K3:K20) -> 4564737 | M22: =SUM(M3:M20) -> 243509807 | N22: =SUM(N3:N20) -> 188339579 | P22: =SUM(P3:P20) -> 55170228
